[Event "Late-Titled-Tuesday-Blitz-March-26-2024"]
[Site "Chess.com"]
[Date "2024.03.26"]
[Round "4"]
[White "Heliosis11"]
[Black "guillembaches"]
[Result "1-0"]
[WhiteElo "2318"]
[BlackElo "2532"]
[TimeControl "180+1"]
[EndTime "14:40:51 PDT"]
[Termination "Heliosis11 won by resignation"]

1. e4 {[%clk 0:03:00.9]} 1... d5 {[%clk 0:03:00.4]} 2. exd5 {[%clk 0:03:00.5]}
2... Qxd5 {[%clk 0:03:01]} 3. Nc3 {[%clk 0:03:00.6]} 3... Qa5 {[%clk 0:03:01.2]}
4. d4 {[%clk 0:02:54.7]} 4... Nf6 {[%clk 0:03:01]} 5. Bd2 {[%clk 0:02:52.9]}
5... Bg4 {[%clk 0:03:00.7]} 6. Be2 {[%clk 0:02:53.4]} 6... Bxe2 {[%clk 0:03:00]}
7. Ncxe2 {[%clk 0:02:54.3]} 7... Qa6 {[%clk 0:02:59.1]} 8. Nf3 {[%clk
0:02:54.3]} 8... e6 {[%clk 0:02:57]} 9. O-O {[%clk 0:02:54.6]} 9... Be7 {[%clk
0:02:53.4]} 10. Bf4 {[%clk 0:02:44.4]} 10... Bd6 {[%clk 0:02:46]} 11. Ne5 {[%clk
0:02:42.6]} 11... O-O {[%clk 0:02:42.6]} 12. Nc3 {[%clk 0:02:40.6]} 12... Nc6
{[%clk 0:02:38]} 13. Qd2 {[%clk 0:02:10.2]} 13... Rad8 {[%clk 0:02:33.1]} 14.
Nxc6 {[%clk 0:02:09.7]} 14... Qxc6 {[%clk 0:02:27.5]} 15. Bxd6 {[%clk
0:02:10.1]} 15... Rxd6 {[%clk 0:02:24]} 16. Rad1 {[%clk 0:02:08.5]} 16... Rfd8
{[%clk 0:02:23.8]} 17. Qe3 {[%clk 0:02:07.3]} 17... Nd5 {[%clk 0:02:16.8]} 18.
Nxd5 {[%clk 0:02:06.8]} 18... Rxd5 {[%clk 0:02:16.3]} 19. c3 {[%clk 0:02:07.2]}
19... b5 {[%clk 0:02:13]} 20. Rfe1 {[%clk 0:02:05.5]} 20... a5 {[%clk
0:02:12.6]} 21. Qf3 {[%clk 0:01:59.7]} 21... b4 {[%clk 0:02:02.6]} 22. h3 {[%clk
0:01:55.5]} 22... bxc3 {[%clk 0:01:58.7]} 23. bxc3 {[%clk 0:01:56.4]} 23... Qc4
{[%clk 0:01:56.3]} 24. Qg3 {[%clk 0:01:47.2]} 24... g6 {[%clk 0:01:46.9]} 25.
Rb1 {[%clk 0:01:45.5]} 25... R8d6 {[%clk 0:01:29.7]} 26. Rb8+ {[%clk 0:01:40.5]}
26... Kg7 {[%clk 0:01:29.7]} 27. Re3 {[%clk 0:01:26.7]} 27... Qxa2 {[%clk
0:01:20.5]} 28. Rf3 {[%clk 0:01:25.9]} 28... Rd7 {[%clk 0:01:07.9]} 29. Qh4
{[%clk 0:01:17.9]} 29... Rf5 {[%clk 0:00:59.4]} 30. Re3 {[%clk 0:01:07.8]} 30...
a4 {[%clk 0:00:53.2]} 31. Re5 {[%clk 0:00:57.3]} 31... a3 {[%clk 0:00:39]} 32.
g4 {[%clk 0:00:45.2]} 32... Rf3 {[%clk 0:00:27.3]} 33. g5 {[%clk 0:00:37.7]}
33... h5 {[%clk 0:00:17.7]} 34. gxh6+ {[%clk 0:00:32.2]} 34... Kh7 {[%clk
0:00:17.8]} 35. Ra5 {[%clk 0:00:18.8]} 35... Qa1+ {[%clk 0:00:17.4]} 36. Kg2
{[%clk 0:00:18.7]} 36... Qc1 {[%clk 0:00:14.3]} 37. Raa8 {[%clk 0:00:17.9]} 1-0

[Event "Late-Titled-Tuesday-Blitz-March-26-2024"]
[Site "Chess.com"]
[Date "2024.03.26"]
[Round "4"]
[White "TorFredrikKaasen"]
[Black "Matrix3x3a"]
[Result "1-0"]
[WhiteElo "2836"]
[BlackElo "2601"]
[TimeControl "180+1"]
[EndTime "14:40:56 PDT"]
[Termination "TorFredrikKaasen won by resignation"]

1. e4 {[%clk 0:03:00.9]} 1... c5 {[%clk 0:02:59.3]} 2. Nf3 {[%clk 0:03:00.6]}
2... d6 {[%clk 0:02:59.2]} 3. Bb5+ {[%clk 0:03:00.1]} 3... Nd7 {[%clk
0:02:58.6]} 4. O-O {[%clk 0:02:58.7]} 4... a6 {[%clk 0:02:58]} 5. Bd3 {[%clk
0:02:55.7]} 5... Ngf6 {[%clk 0:02:56.8]} 6. Re1 {[%clk 0:02:55.6]} 6... Qc7
{[%clk 0:02:56.3]} 7. a4 {[%clk 0:02:51.4]} 7... b6 {[%clk 0:02:47.4]} 8. c3
{[%clk 0:02:51.5]} 8... Bb7 {[%clk 0:02:47.5]} 9. Bc2 {[%clk 0:02:52.2]} 9... c4
{[%clk 0:02:38.7]} 10. Na3 {[%clk 0:02:50.7]} 10... g6 {[%clk 0:02:35.8]} 11. b3
{[%clk 0:02:42.3]} 11... cxb3 {[%clk 0:02:34.7]} 12. Bxb3 {[%clk 0:02:42.5]}
12... Bg7 {[%clk 0:02:32.5]} 13. Bb2 {[%clk 0:02:15.4]} 13... O-O {[%clk
0:02:31.1]} 14. d3 {[%clk 0:02:15]} 14... e5 {[%clk 0:02:23.5]} 15. Nc2 {[%clk
0:02:06.4]} 15... h6 {[%clk 0:02:18.7]} 16. Ne3 {[%clk 0:02:05]} 16... b5 {[%clk
0:01:54.6]} 17. axb5 {[%clk 0:01:50.5]} 17... axb5 {[%clk 0:01:55.5]} 18. Qc2
{[%clk 0:01:36.1]} 18... Nc5 {[%clk 0:01:51.5]} 19. Nd2 {[%clk 0:01:31.4]} 19...
Bc6 {[%clk 0:01:39.1]} 20. Rxa8 {[%clk 0:01:23.7]} 20... Rxa8 {[%clk 0:01:37.5]}
21. Ra1 {[%clk 0:01:21.9]} 21... Qb7 {[%clk 0:01:35.4]} 22. Ba3 {[%clk
0:01:12.2]} 22... Nxb3 {[%clk 0:01:14.9]} 23. Qxb3 {[%clk 0:01:08.1]} 23... d5
{[%clk 0:01:14.8]} 24. Qc2 {[%clk 0:00:47.8]} 24... dxe4 {[%clk 0:01:11.4]} 25.
dxe4 {[%clk 0:00:48.7]} 25... Nxe4 {[%clk 0:01:08.1]} 26. Bb2 {[%clk 0:00:44.8]}
26... Nxd2 {[%clk 0:01:06.7]} 27. Qxd2 {[%clk 0:00:43.6]} 27... Rxa1+ {[%clk
0:00:56.9]} 28. Bxa1 {[%clk 0:00:44.5]} 28... Qe7 {[%clk 0:00:54]} 29. Bb2
{[%clk 0:00:43.2]} 29... Kh7 {[%clk 0:00:51.5]} 30. h3 {[%clk 0:00:42.4]} 30...
e4 {[%clk 0:00:50.1]} 31. c4 {[%clk 0:00:42.2]} 31... bxc4 {[%clk 0:00:46.2]}
32. Bxg7 {[%clk 0:00:40.6]} 32... Kxg7 {[%clk 0:00:45.5]} 33. Qd4+ {[%clk
0:00:41]} 33... Qf6 {[%clk 0:00:43.7]} 34. Qxc4 {[%clk 0:00:41.6]} 34... Qe6
{[%clk 0:00:41.9]} 35. Qd4+ {[%clk 0:00:38.4]} 35... f6 {[%clk 0:00:36.9]} 36.
Qa7+ {[%clk 0:00:37.7]} 36... Qd7 {[%clk 0:00:34.6]} 37. Qc5 {[%clk 0:00:36.1]}
37... Kf7 {[%clk 0:00:22]} 38. Qc3 {[%clk 0:00:33.8]} 38... Qe6 {[%clk
0:00:18.6]} 39. Qc5 {[%clk 0:00:30.5]} 39... h5 {[%clk 0:00:18.4]} 40. Qa7+
{[%clk 0:00:27.7]} 40... Qd7 {[%clk 0:00:18]} 41. Qc5 {[%clk 0:00:27.7]} 41...
Qe6 {[%clk 0:00:17.2]} 42. Nc4 {[%clk 0:00:25.8]} 42... Qd5 {[%clk 0:00:17.1]}
43. Qa7+ {[%clk 0:00:25.9]} 43... Ke6 {[%clk 0:00:16.6]} 44. Ne3 {[%clk
0:00:25.1]} 44... Qd6 {[%clk 0:00:16.4]} 45. Qg7 {[%clk 0:00:24.5]} 45... g5
{[%clk 0:00:14.3]} 46. Qg8+ {[%clk 0:00:24.2]} 46... Ke5 {[%clk 0:00:13.7]} 47.
Nc4+ {[%clk 0:00:24.2]} 1-0

[Event "Late-Titled-Tuesday-Blitz-March-26-2024"]
[Site "Chess.com"]
[Date "2024.03.26"]
[Round "4"]
[White "ImportedItalianMaple"]
[Black "ArchibaldCerveza29"]
[Result "0-1"]
[WhiteElo "2512"]
[BlackElo "2379"]
[TimeControl "180+1"]
[EndTime "14:40:57 PDT"]
[Termination "ArchibaldCerveza29 won by resignation"]

1. Nf3 {[%clk 0:03:00.9]} 1... Nf6 {[%clk 0:02:58.6]} 2. g3 {[%clk 0:03:01.4]}
2... g6 {[%clk 0:02:58.7]} 3. Bg2 {[%clk 0:03:02]} 3... Bg7 {[%clk 0:02:59.3]}
4. O-O {[%clk 0:03:02.5]} 4... O-O {[%clk 0:02:58.5]} 5. d4 {[%clk 0:03:03.2]}
5... d6 {[%clk 0:02:58.9]} 6. c4 {[%clk 0:03:03.7]} 6... c5 {[%clk 0:02:58.5]}
7. d5 {[%clk 0:03:00]} 7... e6 {[%clk 0:02:50]} 8. Nc3 {[%clk 0:02:58.5]} 8...
exd5 {[%clk 0:02:45.8]} 9. cxd5 {[%clk 0:02:59.4]} 9... Re8 {[%clk 0:02:41.2]}
10. Bf4 {[%clk 0:02:59]} 10... Na6 {[%clk 0:02:34.6]} 11. Nd2 {[%clk 0:02:43.9]}
11... Nh5 {[%clk 0:02:30.8]} 12. e4 {[%clk 0:02:41.5]} 12... Nxf4 {[%clk
0:02:23.8]} 13. gxf4 {[%clk 0:02:41.7]} 13... Nc7 {[%clk 0:02:21.9]} 14. a4
{[%clk 0:02:39.6]} 14... b6 {[%clk 0:02:12.4]} 15. Re1 {[%clk 0:02:32.8]} 15...
Qh4 {[%clk 0:02:10.6]} 16. Qf3 {[%clk 0:02:30.9]} 16... Bh6 {[%clk 0:02:06.3]}
17. Ne2 {[%clk 0:02:14.4]} 17... Qf6 {[%clk 0:01:40.9]} 18. Nc4 {[%clk
0:01:58.6]} 18... Rb8 {[%clk 0:01:37.2]} 19. e5 {[%clk 0:01:53.9]} 19... dxe5
{[%clk 0:01:33.7]} 20. fxe5 {[%clk 0:01:54.8]} 20... Qxf3 {[%clk 0:01:30.5]} 21.
Bxf3 {[%clk 0:01:55]} 21... Ba6 {[%clk 0:01:30.7]} 22. b3 {[%clk 0:01:11.4]}
22... Bxc4 {[%clk 0:01:29.2]} 23. bxc4 {[%clk 0:01:12.3]} 23... Rxe5 {[%clk
0:01:29.3]} 24. Nc3 {[%clk 0:01:02.1]} 24... Bg7 {[%clk 0:01:25.8]} 25. Rxe5
{[%clk 0:00:32.5]} 25... Bxe5 {[%clk 0:01:25.6]} 26. Rc1 {[%clk 0:00:32.8]}
26... Bxc3 {[%clk 0:01:21]} 27. Rxc3 {[%clk 0:00:32.6]} 27... Ne8 {[%clk
0:01:21.7]} 28. Bg4 {[%clk 0:00:20]} 28... Nd6 {[%clk 0:01:20]} 29. Bd7 {[%clk
0:00:19.2]} 29... Rb7 {[%clk 0:01:05]} 30. Bb5 {[%clk 0:00:16.4]} 30... Re7
{[%clk 0:01:01.5]} 31. Re3 {[%clk 0:00:15.7]} 31... Kf8 {[%clk 0:01:01]} 32. Kg2
{[%clk 0:00:13.8]} 32... Rxe3 {[%clk 0:00:58.7]} 33. fxe3 {[%clk 0:00:14.7]}
33... f5 {[%clk 0:00:58.4]} 34. Kf3 {[%clk 0:00:13.2]} 34... Ke7 {[%clk
0:00:58.6]} 35. Kf4 {[%clk 0:00:12.7]} 35... Kf6 {[%clk 0:00:58.8]} 36. h4
{[%clk 0:00:13.2]} 36... h6 {[%clk 0:00:58.7]} 37. Ba6 {[%clk 0:00:13.3]} 37...
g5+ {[%clk 0:00:58.3]} 38. hxg5+ {[%clk 0:00:14.2]} 38... hxg5+ {[%clk
0:00:58.6]} 39. Kf3 {[%clk 0:00:14.9]} 39... Ke5 {[%clk 0:00:52.8]} 40. Ke2
{[%clk 0:00:14.8]} 40... Ke4 {[%clk 0:00:36.9]} 41. Kf2 {[%clk 0:00:15]} 41...
f4 {[%clk 0:00:36.5]} 42. exf4 {[%clk 0:00:15.1]} 42... gxf4 {[%clk 0:00:37.4]}
43. Ke2 {[%clk 0:00:15.5]} 43... f3+ {[%clk 0:00:37.6]} 44. Kf2 {[%clk
0:00:15.9]} 44... Kf4 {[%clk 0:00:35.1]} 45. Bb5 {[%clk 0:00:15.3]} 45... Ne4+
{[%clk 0:00:34.7]} 46. Kf1 {[%clk 0:00:11.9]} 46... Ke3 {[%clk 0:00:34.9]} 0-1

[Event "Late-Titled-Tuesday-Blitz-March-26-2024"]
[Site "Chess.com"]
[Date "2024.03.26"]
[Round "4"]
[White "GoltsevDmitry2000"]
[Black "CrushingKings"]
[Result "1-0"]
[WhiteElo "2798"]
[BlackElo "2564"]
[TimeControl "180+1"]
[EndTime "14:40:58 PDT"]
[Termination "GoltsevDmitry2000 won on time"]

1. e4 {[%clk 0:03:00.9]} 1... g6 {[%clk 0:03:00.9]} 2. h4 {[%clk 0:03:00.7]}
2... Bg7 {[%clk 0:02:59.8]} 3. h5 {[%clk 0:03:00.5]} 3... c5 {[%clk 0:02:59.7]}
4. c3 {[%clk 0:03:00]} 4... Nc6 {[%clk 0:02:58.6]} 5. d3 {[%clk 0:03:00.2]} 5...
e6 {[%clk 0:02:53.2]} 6. h6 {[%clk 0:03:00.3]} 6... Bf6 {[%clk 0:02:53.4]} 7.
Nf3 {[%clk 0:03:00.7]} 7... Nge7 {[%clk 0:02:52.5]} 8. g4 {[%clk 0:03:00.6]}
8... O-O {[%clk 0:02:51.8]} 9. Be2 {[%clk 0:02:57.8]} 9... d5 {[%clk 0:02:51.6]}
10. Bf4 {[%clk 0:02:55.5]} 10... e5 {[%clk 0:02:49.6]} 11. Bg5 {[%clk
0:02:52.5]} 11... Bh8 {[%clk 0:02:40]} 12. Rg1 {[%clk 0:02:48.4]} 12... Be6
{[%clk 0:02:28.7]} 13. Nbd2 {[%clk 0:02:39.7]} 13... f6 {[%clk 0:02:11.7]} 14.
Bh4 {[%clk 0:02:39.4]} 14... g5 {[%clk 0:02:11.9]} 15. Bg3 {[%clk 0:02:39.4]}
15... d4 {[%clk 0:02:12.2]} 16. c4 {[%clk 0:02:35.1]} 16... Bxg4 {[%clk
0:01:57.4]} 17. Bh2 {[%clk 0:02:22.1]} 17... Be6 {[%clk 0:01:48.8]} 18. Nb3
{[%clk 0:02:14.1]} 18... b6 {[%clk 0:01:44.1]} 19. Qd2 {[%clk 0:02:14]} 19...
Ng6 {[%clk 0:01:42.9]} 20. O-O-O {[%clk 0:02:14.1]} 20... Qe7 {[%clk 0:01:26.1]}
21. Bg3 {[%clk 0:02:08.2]} 21... Rfb8 {[%clk 0:01:21.4]} 22. Nh2 {[%clk
0:02:04.4]} 22... b5 {[%clk 0:01:16.7]} 23. Rdf1 {[%clk 0:01:49.6]} 23... bxc4
{[%clk 0:01:13.7]} 24. dxc4 {[%clk 0:01:50.5]} 24... a5 {[%clk 0:01:14.3]} 25.
Qd1 {[%clk 0:01:43.8]} 25... a4 {[%clk 0:01:02.8]} 26. Nd2 {[%clk 0:01:42.4]}
26... Nb4 {[%clk 0:01:02.6]} 27. a3 {[%clk 0:01:41.5]} 27... d3 {[%clk
0:00:37.8]} 28. axb4 {[%clk 0:01:34]} 28... dxe2 {[%clk 0:00:37.4]} 29. Qxe2
{[%clk 0:01:32.7]} 29... cxb4 {[%clk 0:00:36.6]} 30. Ng4 {[%clk 0:01:24.8]}
30... b3 {[%clk 0:00:33.7]} 31. Nb1 {[%clk 0:01:19.9]} 31... a3 {[%clk 0:00:24]}
32. bxa3 {[%clk 0:01:01]} 32... Rxa3 {[%clk 0:00:23.8]} 33. Nxa3 {[%clk
0:01:01.9]} 33... b2+ {[%clk 0:00:22.5]} 34. Qxb2 {[%clk 0:01:02.8]} 34... Rxb2
{[%clk 0:00:22.1]} 35. Kxb2 {[%clk 0:01:03.1]} 35... Qb4+ {[%clk 0:00:20.8]} 36.
Ka2 {[%clk 0:01:02.2]} 36... Qd2+ {[%clk 0:00:11.9]} 37. Kb3 {[%clk 0:01:02.1]}
37... Bxg4 {[%clk 0:00:11.2]} 38. Rc1 {[%clk 0:01:01.5]} 38... Ne7 {[%clk
0:00:09.5]} 39. Rc2 {[%clk 0:00:57]} 39... Qd4 {[%clk 0:00:07.9]} 40. Bxe5
{[%clk 0:00:54]} 40... Qb6+ {[%clk 0:00:05.6]} 41. Ka2 {[%clk 0:00:52.8]} 41...
Be6 {[%clk 0:00:03.4]} 42. Bb2 {[%clk 0:00:50.7]} 42... Nc6 {[%clk 0:00:03.8]}
43. Bc3 {[%clk 0:00:49.3]} 43... Qc5 {[%clk 0:00:02.4]} 44. Bd2 {[%clk
0:00:46.5]} 44... Kf7 {[%clk 0:00:02.7]} 45. Rb1 {[%clk 0:00:46.3]} 45... f5
{[%clk 0:00:02.6]} 46. exf5 {[%clk 0:00:44.3]} 46... Bxf5 {[%clk 0:00:02.3]} 47.
Rb5 {[%clk 0:00:44.8]} 1-0

[Event "Late-Titled-Tuesday-Blitz-March-26-2024"]
[Site "Chess.com"]
[Date "2024.03.26"]
[Round "4"]
[White "Meri-Arabidze"]
[Black "a-z30"]
[Result "1-0"]
[WhiteElo "2684"]
[BlackElo "2475"]
[TimeControl "180+1"]
[EndTime "14:40:58 PDT"]
[Termination "Meri-Arabidze won by resignation"]

1. Nf3 {[%clk 0:03:00.9]} 1... c5 {[%clk 0:02:56.6]} 2. c4 {[%clk 0:03:01.2]}
2... Nc6 {[%clk 0:02:54.6]} 3. g3 {[%clk 0:03:01.6]} 3... g6 {[%clk 0:02:54.9]}
4. Bg2 {[%clk 0:03:01.8]} 4... Bg7 {[%clk 0:02:55.4]} 5. O-O {[%clk 0:03:02.2]}
5... d6 {[%clk 0:02:54.8]} 6. d3 {[%clk 0:03:02]} 6... Nf6 {[%clk 0:02:53.3]} 7.
Nc3 {[%clk 0:03:02.2]} 7... O-O {[%clk 0:02:54.2]} 8. a3 {[%clk 0:03:02.4]} 8...
Qd7 {[%clk 0:02:52.9]} 9. Rb1 {[%clk 0:03:02.5]} 9... b6 {[%clk 0:02:52.6]} 10.
b4 {[%clk 0:03:01.5]} 10... Bb7 {[%clk 0:02:52.7]} 11. e3 {[%clk 0:02:58.8]}
11... Rac8 {[%clk 0:02:51.9]} 12. Qe2 {[%clk 0:02:56.3]} 12... Rfd8 {[%clk
0:02:45.4]} 13. Rd1 {[%clk 0:02:55.9]} 13... Ne5 {[%clk 0:02:44.9]} 14. Nxe5
{[%clk 0:02:32.9]} 14... dxe5 {[%clk 0:02:44.2]} 15. Bxb7 {[%clk 0:02:31.4]}
15... Qxb7 {[%clk 0:02:45.1]} 16. bxc5 {[%clk 0:02:31.8]} 16... Rxc5 {[%clk
0:02:44.5]} 17. a4 {[%clk 0:02:32.4]} 17... Rc7 {[%clk 0:02:11.3]} 18. a5 {[%clk
0:02:31.5]} 18... e4 {[%clk 0:02:03.7]} 19. d4 {[%clk 0:02:27.1]} 19... Rdc8
{[%clk 0:02:01]} 20. axb6 {[%clk 0:02:26.5]} 20... axb6 {[%clk 0:02:00.5]} 21.
c5 {[%clk 0:02:26.8]} 21... Rc6 {[%clk 0:01:44.5]} 22. Ba3 {[%clk 0:01:50.9]}
22... Qa8 {[%clk 0:01:27.4]} 23. d5 {[%clk 0:01:43]} 23... R6c7 {[%clk
0:01:14.6]} 24. Nb5 {[%clk 0:01:39.8]} 24... Rd7 {[%clk 0:00:38.2]} 25. cxb6
{[%clk 0:01:30.3]} 25... Nxd5 {[%clk 0:00:32.1]} 26. Nc7 {[%clk 0:01:14.8]}
26... Qxa3 {[%clk 0:00:18.5]} 27. Nxd5 {[%clk 0:01:14.5]} 27... Rb7 {[%clk
0:00:15.5]} 28. Qb5 {[%clk 0:00:49.5]} 28... e6 {[%clk 0:00:14.9]} 29. Nf4
{[%clk 0:00:39.1]} 29... h5 {[%clk 0:00:11.5]} 30. h4 {[%clk 0:00:37.7]} 30...
Qc5 {[%clk 0:00:10.7]} 31. Qa6 {[%clk 0:00:22.5]} 31... Rcb8 {[%clk 0:00:10]}
32. Rd8+ {[%clk 0:00:21.2]} 32... Kh7 {[%clk 0:00:08.2]} 33. Rxb8 {[%clk
0:00:21.2]} 33... Rxb8 {[%clk 0:00:08.8]} 34. b7 {[%clk 0:00:20.6]} 34... Qc7
{[%clk 0:00:08.1]} 35. Qb6 {[%clk 0:00:18.8]} 35... Be5 {[%clk 0:00:08.2]} 36.
Qxc7 {[%clk 0:00:18.8]} 36... Bxc7 {[%clk 0:00:09.1]} 37. Ne2 {[%clk 0:00:18.2]}
37... Kg7 {[%clk 0:00:09.8]} 38. Nd4 {[%clk 0:00:18.2]} 38... Kf8 {[%clk
0:00:10.3]} 39. Nc6 {[%clk 0:00:18.4]} 39... Ke8 {[%clk 0:00:08.2]} 40. Nxb8
{[%clk 0:00:18.1]} 40... Bxb8 {[%clk 0:00:09.1]} 41. Rc1 {[%clk 0:00:17.2]}
41... Kd7 {[%clk 0:00:10]} 42. Rc8 {[%clk 0:00:17.2]} 1-0

[Event "Late-Titled-Tuesday-Blitz-March-26-2024"]
[Site "Chess.com"]
[Date "2024.03.26"]
[Round "4"]
[White "Laico"]
[Black "GarciaIsaac"]
[Result "0-1"]
[WhiteElo "2406"]
[BlackElo "2651"]
[TimeControl "180+1"]
[EndTime "14:40:59 PDT"]
[Termination "GarciaIsaac won on time"]

1. e4 {[%clk 0:02:39.9]} 1... c6 {[%clk 0:02:47.9]} 2. d4 {[%clk 0:02:39.3]}
2... d5 {[%clk 0:02:47.8]} 3. f3 {[%clk 0:02:39.5]} 3... e6 {[%clk 0:02:45.4]}
4. Nc3 {[%clk 0:02:37.4]} 4... Nf6 {[%clk 0:02:43.2]} 5. Be3 {[%clk 0:02:35.5]}
5... Bb4 {[%clk 0:02:30.3]} 6. Bd3 {[%clk 0:02:33.3]} 6... dxe4 {[%clk
0:02:16.2]} 7. fxe4 {[%clk 0:02:27.5]} 7... Nxe4 {[%clk 0:02:13.6]} 8. Bxe4
{[%clk 0:01:59.5]} 8... Bxc3+ {[%clk 0:02:11.7]} 9. Kf1 {[%clk 0:01:47.6]} 9...
Bxb2 {[%clk 0:02:02.3]} 10. Rb1 {[%clk 0:01:46.9]} 10... Ba3 {[%clk 0:02:02.2]}
11. Nf3 {[%clk 0:01:40.1]} 11... Nd7 {[%clk 0:01:58.7]} 12. h3 {[%clk
0:01:27.3]} 12... Nf6 {[%clk 0:01:52.1]} 13. Bd3 {[%clk 0:01:25.7]} 13... O-O
{[%clk 0:01:41.4]} 14. Bg5 {[%clk 0:01:24.3]} 14... h6 {[%clk 0:01:39.9]} 15.
Bh4 {[%clk 0:01:23.6]} 15... Be7 {[%clk 0:01:37.8]} 16. Qd2 {[%clk 0:01:09.9]}
16... b6 {[%clk 0:01:35.1]} 17. g4 {[%clk 0:01:04.3]} 17... Nd5 {[%clk
0:01:29.4]} 18. Bf2 {[%clk 0:00:57.8]} 18... f5 {[%clk 0:01:00.9]} 19. gxf5
{[%clk 0:00:47.8]} 19... exf5 {[%clk 0:00:49.5]} 20. Rg1 {[%clk 0:00:47.9]}
20... Kh8 {[%clk 0:00:46]} 21. c4 {[%clk 0:00:42.5]} 21... Nf6 {[%clk
0:00:35.7]} 22. Qf4 {[%clk 0:00:32.5]} 22... Bd6 {[%clk 0:00:29.4]} 23. Qh4
{[%clk 0:00:31.4]} 23... Ne4 {[%clk 0:00:28.7]} 24. Qh5 {[%clk 0:00:25.9]} 24...
Nxf2 {[%clk 0:00:21.1]} 25. Kxf2 {[%clk 0:00:26.8]} 25... Be6 {[%clk 0:00:20]}
26. Rg6 {[%clk 0:00:24.2]} 26... Rf6 {[%clk 0:00:16.1]} 27. Rbg1 {[%clk
0:00:20.7]} 27... Bf7 {[%clk 0:00:16.2]} 28. Bxf5 {[%clk 0:00:09]} 28... Bxg6
{[%clk 0:00:14.9]} 29. Rxg6 {[%clk 0:00:08.7]} 29... Qf8 {[%clk 0:00:14.1]} 30.
Nh4 {[%clk 0:00:06.6]} 30... Be7 {[%clk 0:00:10.3]} 31. Kg2 {[%clk 0:00:05.5]}
31... Rd8 {[%clk 0:00:08.5]} 32. Kh1 {[%clk 0:00:03.8]} 32... Rdd6 {[%clk
0:00:08.6]} 33. Rxf6 {[%clk 0:00:01.8]} 33... Qxf6 {[%clk 0:00:09.5]} 34. Ng6+
{[%clk 0:00:02]} 34... Kg8 {[%clk 0:00:09.7]} 0-1

[Event "Late-Titled-Tuesday-Blitz-March-26-2024"]
[Site "Chess.com"]
[Date "2024.03.26"]
[Round "4"]
[White "AnthonyWirig"]
[Black "Vladimir_Zakhartsov"]
[Result "0-1"]
[WhiteElo "2829"]
[BlackElo "2995"]
[TimeControl "180+1"]
[EndTime "14:41:00 PDT"]
[Termination "Vladimir_Zakhartsov won by resignation"]

1. d4 {[%clk 0:03:00.9]} 1... Nf6 {[%clk 0:02:59.7]} 2. Bg5 {[%clk 0:03:00.5]}
2... d5 {[%clk 0:02:58.9]} 3. Bxf6 {[%clk 0:03:00.4]} 3... exf6 {[%clk
0:02:59.8]} 4. e3 {[%clk 0:03:01]} 4... Bd6 {[%clk 0:03:00]} 5. c4 {[%clk
0:03:01.3]} 5... dxc4 {[%clk 0:02:59.9]} 6. Bxc4 {[%clk 0:03:02.2]} 6... O-O
{[%clk 0:03:00.1]} 7. Nc3 {[%clk 0:03:02.9]} 7... Nd7 {[%clk 0:02:57.7]} 8. Nf3
{[%clk 0:03:03]} 8... f5 {[%clk 0:02:57.9]} 9. O-O {[%clk 0:03:02.9]} 9... Nf6
{[%clk 0:02:58.2]} 10. Qc2 {[%clk 0:03:03.4]} 10... Qe7 {[%clk 0:02:56.4]} 11.
Nb5 {[%clk 0:02:57.6]} 11... Bb4 {[%clk 0:02:36.1]} 12. a3 {[%clk 0:02:53.3]}
12... Ba5 {[%clk 0:02:36.4]} 13. b4 {[%clk 0:02:52.7]} 13... Bb6 {[%clk
0:02:36.7]} 14. Nc3 {[%clk 0:02:47.8]} 14... c6 {[%clk 0:02:36.1]} 15. Na4
{[%clk 0:02:36.3]} 15... Bc7 {[%clk 0:02:35.3]} 16. Nc5 {[%clk 0:02:36.5]} 16...
Ne4 {[%clk 0:02:32.9]} 17. Rfd1 {[%clk 0:02:15.3]} 17... g6 {[%clk 0:02:19.3]}
18. g3 {[%clk 0:02:15]} 18... Kg7 {[%clk 0:02:18.3]} 19. Rac1 {[%clk 0:02:13.8]}
19... h5 {[%clk 0:02:15.3]} 20. Bf1 {[%clk 0:02:10.9]} 20... Bd6 {[%clk
0:02:06.9]} 21. Bg2 {[%clk 0:02:10.1]} 21... Re8 {[%clk 0:01:38.6]} 22. Nxe4
{[%clk 0:01:21.1]} 22... fxe4 {[%clk 0:01:36.6]} 23. Ne5 {[%clk 0:01:21.6]}
23... Bxe5 {[%clk 0:01:31.1]} 24. dxe5 {[%clk 0:01:22.5]} 24... Qxe5 {[%clk
0:01:29.6]} 25. Rd4 {[%clk 0:01:23.1]} 25... Bf5 {[%clk 0:01:09.9]} 26. h4
{[%clk 0:01:11.6]} 26... a5 {[%clk 0:00:59.7]} 27. Rcd1 {[%clk 0:00:42]} 27...
axb4 {[%clk 0:00:53.9]} 28. axb4 {[%clk 0:00:42.9]} 28... Ra3 {[%clk 0:00:53]}
29. Qb2 {[%clk 0:00:27.7]} 29... Rd3 {[%clk 0:00:37]} 30. R1xd3 {[%clk
0:00:23.3]} 30... exd3 {[%clk 0:00:37.9]} 31. e4 {[%clk 0:00:19.9]} 31... Rd8
{[%clk 0:00:34.6]} 32. exf5 {[%clk 0:00:04.6]} 32... Rxd4 {[%clk 0:00:25.1]} 33.
Qd2 {[%clk 0:00:04.6]} 33... Qxf5 {[%clk 0:00:23.9]} 34. Bf1 {[%clk 0:00:04.1]}
34... b6 {[%clk 0:00:19.9]} 35. Qc3 {[%clk 0:00:02.9]} 35... c5 {[%clk
0:00:20.1]} 36. bxc5 {[%clk 0:00:03.5]} 36... bxc5 {[%clk 0:00:20.7]} 37. Qd2
{[%clk 0:00:04.4]} 37... c4 {[%clk 0:00:19.6]} 38. Qc3 {[%clk 0:00:04.8]} 38...
Qe5 {[%clk 0:00:20]} 39. Qd2 {[%clk 0:00:05]} 39... c3 {[%clk 0:00:19.4]} 40.
Qxc3 {[%clk 0:00:05.1]} 40... d2 {[%clk 0:00:19.8]} 41. Be2 {[%clk 0:00:05]}
41... d1=Q+ {[%clk 0:00:19.9]} 42. Bxd1 {[%clk 0:00:04.9]} 42... Rxd1+ {[%clk
0:00:20.1]} 0-1